bitfinex/quotes_SOLUSD_20241218
["timestamp","ask_amount","ask_price","bid_price","bid_amount"]
[1734504081515,11.50426795,214.39,214.31,11.50426795]
[1734504081717,11.50426795,214.39,214.33,23.776884]
[1734504081930,11.50426795,214.38,214.32,23.776884]
[1734504082137,11.50426795,214.38,214.31,23.776884]
[1734504082338,11.50426795,214.37,214.31,23.776884]
[1734504083348,11.50426795,214.38,214.31,23.776884]
[1734504084221,11.50426795,214.39,214.31,35.28115195]
[1734504084634,11.50426795,214.37,214.31,23.776884]
[1734504085048,11.50426795,214.35,214.3,0.69972993]
[1734504085243,11.50426795,214.34,214.26,14.62626795]
[1734504085445,11.50426795,214.33,214.26,3.122]
[1734504085756,11.50426795,214.32,214.26,3.122]
[1734504086060,11.50426795,214.29,214.26,3.122]
[1734504086220,11.50426795,214.29,214.24,6.3818]
[1734504086423,11.50426795,214.28,214.21,3.4068]
[1734504086833,11.50426795,214.28,214.21,14.91106795]
[1734504087034,6.1954,214.38,214.22,11.50426795]
[1734504087035,11.50426795,214.29,214.22,11.50426795]
[1734504087552,17.33646795,214.33,214.25,11.50426795]
[1734504087754,11.50426795,214.34,214.27,23.776884]
[1734504088558,14.90546795,214.39,214.27,23.776884]
[1734504088559,11.50426795,214.36,214.29,35.28115195]
[1734504088848,11.50426795,214.37,214.3,11.50426795]
[1734504089067,11.50426795,214.37,214.31,23.776884]
[1734504089230,11.50426795,214.36,214.29,35.28115195]
[1734504089674,11.50426795,214.38,214.31,23.776884]
[1734504089881,5.8301,214.41,214.34,35.28115195]
[1734504090178,11.50426795,214.4,214.34,23.776884]
[1734504091194,11.50426795,214.41,214.34,35.28115195]
[1734504091682,11.50426795,214.41,214.34,23.776884]
[1734504092056,11.50426795,214.41,214.35,23.776884]
[1734504092372,11.50426795,214.41,214.34,11.50426795]
[1734504092574,11.50426795,214.41,214.35,23.776884]
[1734504093657,11.50426795,214.41,214.33,23.776884]
[1734504093859,11.50426795,214.41,214.35,23.776884]
[1734504094163,11.50426795,214.43,214.35,35.28115195]
[1734504094562,31.50426795,214.42,214.35,35.28115195]
[1734504094767,20.0,214.42,214.36,11.50426795]
[1734504094962,31.50426795,214.42,214.35,11.50426795]
[1734504095187,31.50426795,214.42,214.36,23.776884]
[1734504095678,11.50426795,214.4,214.36,23.776884]
[1734504095977,11.50426795,214.4,214.34,23.776884]
[1734504096180,11.50426795,214.39,214.32,14.91106795]
[1734504096390,11.50426795,214.39,214.32,3.4068]
[1734504097562,11.50426795,214.37,214.32,3.4068]
[1734504098686,11.50426795,214.37,214.21,14.0]
[1734504098687,31.50426795,214.33,214.26,2.904]
[1734504098886,20.0,214.33,214.27,11.50426795]
[1734504099182,31.50426795,214.36,214.28,11.50426795]
[1734504099481,31.50426795,214.36,214.29,11.50426795]
[1734504099990,27.35394869,214.36,214.28,7.35394869]
[1734504100657,20.0,214.32,214.28,23.776884]
[1734504101492,7.35394869,214.35,214.28,23.776884]
[1734504101653,7.35394869,214.34,214.27,23.776884]
[1734504102170,25.8313,214.36,214.28,7.35394869]
[1734504102351,33.18524869,214.36,214.29,7.35394869]
[1734504102557,33.18524869,214.36,214.3,23.776884]
[1734504103774,7.35394869,214.34,214.28,23.776884]
[1734504103974,7.35394869,214.35,214.28,7.35394869]
[1734504106767,7.35394869,214.35,214.27,23.776884]
[1734504106971,20.0,214.32,214.28,7.35394869]
[1734504107673,20.0,214.33,214.28,7.35394869]
[1734504108995,20.0,214.31,214.26,2.904]
[1734504109300,20.0,214.28,214.23,7.35394869]
[1734504109499,20.0,214.28,214.24,7.35394869]
[1734504115177,27.35394869,214.27,214.2,23.776884]
[1734504115380,27.35394869,214.27,214.16,3.66413596]
[1734504115381,7.35394869,214.25,214.18,7.35394869]
[1734504115601,20.0,214.25,214.19,7.35394869]
[1734504115805,7.35394869,214.26,214.19,7.35394869]
[1734504116497,20.0,214.25,214.21,7.35394869]
[1734504117008,20.0,214.27,214.24,7.35394869]
[1734504117186,20.0,214.28,214.24,7.35394869]
[1734504117693,20.0,214.28,214.2,24.47703988]
[1734504117694,7.35394869,214.27,214.2,31.13083269]
[1734504118090,27.35394869,214.28,214.21,7.35394869]
[1734504118494,27.35394869,214.28,214.18,23.776884]
[1734504118706,20.0,214.28,214.22,7.35394869]
[1734504118916,20.0,214.26,214.23,31.13083269]
[1734504119223,20.0,214.28,214.24,31.13083269]
[1734504119524,20.0,214.28,214.24,23.776884]
[1734504120102,20.0,214.29,214.24,23.776884]
[1734504121533,20.0,214.29,214.24,31.13083269]
[1734504121830,20.0,214.31,214.27,7.35394869]
[1734504122034,7.35394869,214.34,214.27,7.35394869]
[1734504122238,5.8315,214.35,214.28,31.13083269]
[1734504122429,7.35394869,214.39,214.32,7.35394869]
[1734504122624,7.35394869,214.37,214.27,24.47662719]
[1734504122826,7.35394869,214.33,214.27,23.776884]
[1734504123130,7.35394869,214.31,214.27,23.776884]
[1734504123304,7.35394869,214.32,214.27,23.776884]
[1734504123526,7.35394869,214.32,214.26,2.9641]
[1734504124119,7.35394869,214.33,214.26,2.9641]
[1734504124439,7.35394869,214.33,214.26,10.31804869]
[1734504124649,7.35394869,214.33,214.26,2.9641]
[1734504125519,13.18594869,214.34,214.27,31.13083269]
[1734504125853,13.18474869,214.38,214.32,23.776884]
[1734504126056,7.35394869,214.37,214.31,23.776884]
[1734504127415,7.35394869,214.36,214.31,23.776884]
[1734504127615,7.35394869,214.36,214.3,23.776884]
[1734504128026,7.35394869,214.36,214.29,23.776884]
[1734504129010,7.35394869,214.35,214.29,23.776884]
[1734504129214,7.35394869,214.34,214.27,23.776884]
[1734504129818,7.35394869,214.33,214.27,23.776884]
[1734504130028,7.35394869,214.32,214.27,23.776884]
[1734504130225,7.35394869,214.31,214.27,23.776884]
[1734504130425,27.35394869,214.28,214.17,7.35394869]
[1734504130644,7.35394869,214.24,214.17,7.35394869]
[1734504131429,22.944,214.31,214.22,7.35394869]
[1734504131625,20.0,214.27,214.23,23.776884]
[1734504132151,20.0,214.26,214.23,23.776884]
[1734504132333,20.0,214.26,214.2,7.35394869]
[1734504132533,20.0,214.26,214.21,23.776884]
[1734504132842,20.0,214.26,214.21,7.35394869]
[1734504133045,20.0,214.28,214.23,23.776884]
[1734504133252,20.0,214.28,214.25,7.35394869]
[1734504133551,7.35394869,214.32,214.25,7.35394869]
[1734504134558,7.35394869,214.33,214.27,23.776884]
[1734504134852,5.8318,214.35,214.27,23.776884]
[1734504135049,7.35394869,214.34,214.27,31.13083269]
[1734504135348,7.35394869,214.33,214.27,23.776884]
[1734504135644,7.35394869,214.32,214.26,23.776884]
[1734504135943,5.8318,214.35,214.26,23.776884]
[1734504136152,11.49357046,214.32,214.26,23.776884]
[1734504137547,20.0,214.25,214.2,2.9641]
[1734504137752,11.49357046,214.26,214.2,14.45767046]
[1734504137967,11.49357046,214.27,214.2,14.45767046]
[1734504138246,20.0,214.24,214.2,14.45767046]
[1734504138823,20.0,214.24,214.2,2.9641]
[1734504139027,31.49357046,214.24,214.17,11.49357046]
[1734504139223,11.49357046,214.23,214.16,11.49357046]
[1734504140568,11.49357046,214.23,214.15,26.81157046]
[1734504140860,11.49357046,214.2,214.15,5.9491]
[1734504142460,20.0,214.2,214.15,5.9491]
[1734504142676,11.49357046,214.21,214.15,5.9491]
[1734504143355,11.3703908,214.21,214.15,5.9491]
[1734504144561,20.0,214.16,214.15,5.9491]
[1734504144729,5.8356,214.2,214.15,5.9491]
[1734504144935,17.32837046,214.24,214.17,11.49357046]
[1734504145154,20.0,214.21,214.17,11.49357046]
[1734504147246,20.0,214.21,214.19,11.49357046]
[1734504147448,20.0,214.24,214.2,11.49357046]
[1734504147762,11.49357046,214.29,214.22,35.27045446]
[1734504148139,11.49357046,214.31,214.24,11.49357046]
[1734504148470,5.8326,214.32,214.26,11.49357046]
[1734504148764,17.32617046,214.32,214.25,11.49357046]
[1734504149778,11.49357046,214.3,214.23,11.49357046]
[1734504150492,11.49357046,214.31,214.24,11.49357046]
[1734504150691,20.0,214.28,214.24,11.49357046]
[1734504150858,20.0,214.28,214.23,11.49357046]
[1734504151262,31.49357046,214.29,214.22,23.776884]
[1734504151462,31.49357046,214.29,214.22,35.27045446]
[1734504151774,20.0,214.29,214.23,11.49357046]
[1734504152469,31.49357046,214.29,214.22,35.27045446]
[1734504152682,11.49357046,214.28,214.22,23.776884]
[1734504153579,11.49357046,214.26,214.21,23.776884]
[1734504154164,11.49357046,214.26,214.2,23.776884]
[1734504154871,17.79747046,214.39,214.15,5.9491]
[1734504154872,11.49357046,214.22,214.15,5.9491]
[1734504155067,11.49357046,214.21,214.15,5.9491]
[1734504155271,11.49357046,214.2,214.15,5.9491]
[1734504155466,11.49357046,214.18,214.15,5.9491]
[1734504156195,20.0,214.16,214.15,5.9491]
[1734504156374,31.49357046,214.16,214.15,5.9491]
[1734504157777,31.49357046,214.16,214.15,3.4305]
[1734504158084,31.49357046,214.16,214.15,0.9069]
[1734504159781,20.0,214.16,214.15,0.9069]
[1734504162471,11.49357046,214.18,214.15,0.9069]
[1734504163281,16.16247046,214.19,214.15,0.9069]
[1734504163800,24.6689,214.19,214.15,0.9069]
[1734504164009,20.0,214.17,214.15,0.9069]
[1734504164503,20.0,214.19,214.15,0.9069]
[1734504164717,11.49357046,214.21,214.15,0.9069]
[1734504164953,11.49357046,214.2,214.15,0.9069]
[1734504165107,11.49357046,214.19,214.15,0.9069]
[1734504165637,11.49357046,214.18,214.15,0.9069]
[1734504166735,11.49357046,214.16,214.15,0.9069]
[1734504167727,20.0,214.13,214.08,140.0]
[1734504167911,31.49357046,214.13,214.08,140.0]
[1734504168114,20.0,214.12,214.08,140.0]
[1734504168446,20.0,214.12,214.08,151.49357046]
[1734504168650,16.16307046,214.16,214.08,151.49357046]
[1734504168834,20.0,214.13,214.09,11.49357046]
[1734504169036,20.0,214.13,214.08,140.0]
[1734504169254,20.0,214.12,214.08,140.0]
[1734504173241,4.6704,214.11,214.08,140.0]
[1734504173443,16.16397046,214.11,214.08,140.0]
[1734504173645,20.0,214.09,214.08,140.0]
[1734504174223,4.6704,214.11,214.08,140.0]
[1734504174424,20.0,214.1,214.08,140.0]
[1734504175655,4.6704,214.11,214.08,140.0]
[1734504175859,11.49357046,214.12,214.08,140.0]
[1734504176150,11.49357046,214.1,214.08,140.0]
[1734504176459,11.49357046,214.09,214.08,140.0]
[1734504177156,11.49357046,214.09,214.08,132.9856]
[1734504177451,11.49357046,214.09,214.08,130.1132]
[1734504177824,16.16447046,214.09,214.08,130.1132]
[1734504179052,16.16447046,214.09,214.08,153.890084]
[1734504180631,16.16447046,214.09,214.08,130.1132]
[1734504181055,11.49357046,214.1,214.08,153.890084]
[1734504181257,11.49357046,214.12,214.09,23.776884]
[1734504181427,11.49357046,214.11,214.09,23.776884]
[1734504181943,11.49357046,214.1,214.09,23.776884]
[1734504182150,11.49357046,214.11,214.09,23.776884]
[1734504182334,11.49357046,214.13,214.09,23.776884]
[1734504182527,4.6689,214.18,214.09,23.776884]
[1734504182528,11.49357046,214.12,214.09,23.776884]
[1734504182854,11.49357046,214.11,214.09,23.776884]
[1734504185551,9.337,214.2,214.1,3.0697]
[1734504185724,11.49357046,214.17,214.11,23.776884]
[1734504186154,11.49357046,214.12,214.08,15.416684]
[1734504186354,11.49357046,214.09,214.08,12.249584]
[1734504187654,23.74315446,214.09,214.08,12.249584]
[1734504188226,11.49357046,214.09,214.08,12.249584]
[1734504190586,11.49357046,214.13,214.08,12.249584]
[1734504191234,11.49357046,214.11,214.08,12.249584]
[1734504192256,16.16297,214.16,214.08,12.249584]
[1734504192570,11.49357046,214.09,214.08,12.249584]
[1734504194055,7.37422366,214.09,214.08,12.249584]
[1734504194659,20.0,214.06,214.0,2.0468]
[1734504194972,7.37422366,214.01,214.0,2.0468]
[1734504195171,123.7532,213.98,213.97,0.5695236]
[1734504195386,20.0,213.98,213.94,135.119]
[1734504195544,7.37422366,213.95,213.94,135.119]
[1734504195750,20.85325654,213.98,213.94,135.119]
[1734504196070,11.53287094,213.95,213.94,135.119]
[1734504196390,11.53287094,213.97,213.94,135.119]
[1734504196684,11.53287094,213.99,213.94,135.119]
[1734504197763,11.53287094,214.01,213.95,3.0697]
[1734504197965,11.53287094,213.99,213.95,3.0697]
[1734504198735,11.53287094,213.96,213.94,135.119]
[1734504198941,11.53287094,213.95,213.94,135.119]
[1734504200073,4.6739,213.95,213.94,135.119]
[1734504200743,11.53287094,213.96,213.94,135.119]
[1734504202070,4.6739,213.95,213.94,135.119]
[1734504202676,11.53287094,213.96,213.94,135.119]
[1734504203742,9.3445,214.03,213.94,135.119]
[1734504203743,11.53287094,214.0,213.94,135.119]
[1734504205371,7.88366809,214.08,213.95,23.776884]
[1734504205372,11.53287094,214.02,213.95,23.776884]
[1734504206475,11.53287094,214.02,213.94,146.65187094]
[1734504207046,20.0,214.06,213.96,11.53287094]
[1734504207251,11.53287094,214.05,213.98,11.53287094]
[1734504207465,8.08696696,214.15,214.02,11.53287094]
[1734504207672,11.53287094,214.11,214.02,11.53287094]
[1734504207889,11.53287094,214.09,214.02,11.53287094]
[1734504208369,11.53287094,214.09,214.0,11.53287094]
[1734504208572,11.53287094,214.07,214.01,23.776884]
[1734504208775,11.53287094,214.07,213.94,135.119]
[1734504208776,11.53287094,214.05,213.99,23.776884]
[1734504209072,11.53287094,214.03,213.94,146.65187094]
[1734504210547,11.53287094,214.03,213.95,23.776884]
[1734504210972,11.53287094,214.01,213.95,23.776884]
[1734504211169,11.53287094,214.01,213.94,135.119]
[1734504211555,11.53287094,213.99,213.94,135.119]
[1734504211979,11.53287094,213.97,213.94,135.119]
[1734504215365,11.53287094,214.01,213.94,135.119]
[1734504215565,11.53287094,213.99,213.94,135.119]
[1734504215777,11.53287094,213.97,213.94,135.119]
[1734504215972,11.53287094,213.95,213.94,135.119]
[1734504217363,11.53287094,213.98,213.94,135.119]
[1734504217993,11.53287094,213.97,213.94,135.119]
[1734504218220,11.53287094,213.95,213.94,135.119]
[1734504218900,11.53287094,213.97,213.94,135.119]
[1734504219280,11.53287094,213.98,213.94,135.119]
[1734504219478,11.53287094,213.97,213.94,135.119]
[1734504221588,11.53287094,213.95,213.94,135.119]
[1734504224494,23.06574188,213.95,213.94,123.368]
[1734504224781,11.53287094,213.95,213.94,112.6037]
[1734504226512,23.06574188,213.95,213.94,107.267]
[1734504226818,24.34804188,213.95,213.94,3.20302057]
[1734504227012,20.0,213.96,213.94,3.20302057]
[1734504227206,11.53287094,213.95,213.94,3.20302057]
[1734504227525,23.06574188,213.95,213.94,3.20302057]
[1734504227839,20.0,213.93,213.92,10.0]
[1734504228038,31.53287094,213.93,213.92,10.0]
[1734504231007,11.53287094,213.93,213.92,10.0]
[1734504233024,3.5055,213.95,213.92,10.0]
[1734504233198,11.53287094,213.93,213.92,10.0]
[1734504234937,11.53287094,213.94,213.92,10.0]
[1734504235139,11.53287094,213.95,213.92,10.0]
[1734504235635,11.53287094,213.98,213.93,23.776884]
[1734504235806,11.53287094,213.97,213.93,23.776884]
[1734504236134,11.53287094,213.99,213.93,23.776884]
[1734504236323,11.53287094,214.0,213.94,9.8609]
[1734504236536,11.53287094,213.99,213.95,23.776884]
[1734504237931,11.53287094,213.99,213.95,23.8409824]
[1734504238145,11.53287094,213.97,213.95,0.0640984]
[1734504238353,3.504,214.04,213.95,0.0640984]
[1734504238354,11.53287094,213.96,213.95,0.0640984]
[1734504240466,15.03817094,213.96,213.95,0.0640984]
[1734504241679,11.53287094,213.96,213.95,0.0640984]
[1734504242465,11.53287094,213.99,213.95,0.0640984]
[1734504242669,11.53287094,214.0,213.95,0.0640984]
[1734504243057,3.5041,214.04,213.95,0.0640984]
[1734504243058,11.53287094,214.01,213.95,23.8409824]
[1734504243244,11.53287094,214.02,213.95,30.3817824]
[1734504244083,11.53287094,214.01,213.95,30.3817824]
[1734504244469,11.53287094,214.02,213.95,41.91465334]
[1734504245274,11.53287094,214.03,213.95,41.91465334]
[1734504245477,11.53287094,214.02,213.95,41.91465334]
[1734504246081,11.53287094,214.01,213.95,30.3817824]
[1734504246383,11.53287094,214.02,213.97,23.776884]
[1734504246683,11.53287094,214.01,213.97,23.776884]
[1734504247865,11.53287094,214.01,213.96,3.3201]
[1734504248272,11.53287094,214.0,213.96,3.3201]
[1734504248803,11.53287094,213.99,213.96,3.3201]
[1734504248966,15.03657094,214.06,213.95,0.0640984]
[1734504248967,11.53287094,213.98,213.95,0.0640984]
[1734504249169,11.53287094,213.97,213.95,0.0640984]
[1734504249574,11.53287094,213.99,213.95,0.0640984]
[1734504249772,11.53287094,213.97,213.95,0.0640984]
[1734504250484,20.0,214.03,213.95,0.0640984]
[1734504250689,11.53287094,213.99,213.95,0.0640984]
[1734504250994,11.53287094,214.01,213.95,0.0640984]
[1734504251866,11.53287094,214.01,213.95,23.8409824]
[1734504252068,11.53287094,214.03,213.96,11.53287094]
[1734504252372,3.5035,214.07,213.98,11.53287094]
[1734504252373,11.53287094,214.05,213.98,11.53287094]
[1734504252685,11.53287094,214.04,213.96,35.30975494]
[1734504252868,11.53287094,214.04,213.97,11.53287094]
[1734504253071,11.53287094,214.04,213.98,23.776884]
[1734504253587,11.53287094,214.04,213.95,0.76496446]
[1734504253588,11.53287094,214.03,213.95,35.37385334]
[1734504256274,11.53287094,214.03,213.97,23.776884]
[1734504256780,11.53287094,214.03,213.96,23.776884]
[1734504256981,11.53287094,214.01,213.95,0.0640984]
[1734504257388,11.53287094,214.03,213.95,12.29788539]
[1734504257895,11.53287094,214.06,213.99,11.53287094]
[1734504258081,11.53287094,214.06,213.97,11.53287094]
[1734504258265,11.53287094,214.04,213.97,23.776884]
[1734504259098,11.53287094,214.06,213.99,23.776884]
[1734504260300,11.53287094,214.1,214.02,11.53287094]
[1734504260595,11.53287094,214.1,214.03,11.53287094]
[1734504260801,15.03567094,214.11,214.03,11.53287094]
[1734504260979,11.53287094,214.1,214.02,11.53287094]
[1734504261183,11.53287094,214.08,214.01,35.30975494]
[1734504261696,11.53287094,214.09,214.02,11.53287094]
[1734504262386,3.5028,214.11,214.03,11.53287094]
[1734504262695,11.53287094,214.09,214.02,11.53287094]
[1734504263491,11.53287094,214.09,214.01,35.30975494]
[1734504263879,11.53287094,214.08,214.01,23.776884]
[1734504264078,11.53287094,214.07,213.99,11.53287094]
[1734504264408,11.53287094,214.07,213.97,23.776884]
[1734504264580,11.53287094,214.08,214.0,11.53287094]
[1734504265173,20.0,214.05,213.97,23.776884]
[1734504265497,3.5033,214.08,213.99,11.53287094]
[1734504265498,11.53287094,214.06,213.99,11.53287094]
[1734504265801,11.53287094,214.07,213.99,11.53287094]
[1734504266574,3.5028,214.11,214.01,11.53287094]
[1734504266782,11.53287094,214.07,214.0,11.53287094]
[1734504267411,11.53287094,214.09,214.02,11.53287094]
[1734504267594,11.53287094,214.1,214.02,11.53287094]
[1734504268280,11.53287094,214.1,214.03,11.53287094]
[1734504268710,11.53287094,214.11,214.04,11.53287094]
[1734504269680,11.53287094,214.1,214.03,11.53287094]
[1734504270089,11.53287094,214.09,214.03,23.776884]
[1734504270495,11.53287094,214.1,214.03,35.30975494]
[1734504270698,11.53287094,214.12,214.05,35.30975494]
[1734504270903,11.53287094,214.12,214.05,11.53287094]
[1734504271399,3.5024,214.14,214.05,23.776884]
[1734504271400,11.53287094,214.11,214.05,23.776884]
[1734504271617,11.53287094,214.12,214.05,11.53287094]
[1734504271915,11.53287094,214.13,214.06,15.19557094]
[1734504272084,7.36881359,214.13,214.06,11.03151359]
[1734504272607,20.0,214.16,214.07,31.14569759]
[1734504272781,7.36881359,214.14,214.07,31.14569759]
[1734504273678,7.36881359,214.13,214.07,23.776884]
[1734504273880,7.36881359,214.12,214.07,23.776884]
[1734504274387,3.5019,214.17,214.07,31.14569759]
[1734504274684,7.36881359,214.13,214.07,23.776884]
[1734504275318,7.36881359,214.12,214.06,3.6627]
[1734504275633,7.36881359,214.09,214.02,7.36881359]
[1734504276507,7.36881359,214.11,214.04,7.36881359]
[1734504277610,3.5025,214.13,214.05,31.14569759]
[1734504277778,7.36881359,214.12,214.05,31.14569759]
[1734504278582,7.36881359,214.13,214.06,7.36881359]
[1734504278807,7.36881359,214.13,214.05,23.776884]
[1734504279006,7.36881359,214.13,214.06,7.36881359]
[1734504279782,7.36881359,214.11,214.04,7.36881359]
[1734504280094,7.36881359,214.11,214.05,23.776884]
[1734504280703,7.36881359,214.11,214.04,23.776884]
[1734504280915,7.36881359,214.11,214.04,7.36881359]
[1734504281208,7.36881359,214.11,214.05,23.776884]
[1734504281619,7.36881359,214.12,214.05,31.14569759]
[1734504281990,7.36881359,214.13,214.05,31.14569759]
[1734504282685,7.36881359,214.12,214.05,31.14569759]
[1734504283508,7.36881359,214.12,213.95,0.0640984]
[1734504283509,7.36881359,214.08,213.95,0.0640984]
[1734504283708,20.0,214.03,213.95,0.0640984]
[1734504283903,7.36881359,213.97,213.95,0.0640984]
[1734504284099,0.70056146,213.96,213.95,0.0640984]
[1734504284310,7.36881359,213.97,213.95,0.0640984]
[1734504284902,0.70056146,213.96,213.95,0.0640984]
[1734504286097,12.23369522,213.96,213.95,0.0640984]
[1734504286614,11.53313376,213.96,213.95,0.0640984]
[1734504287423,3.505,213.98,213.95,0.0640984]
[1734504287424,15.03813376,213.98,213.95,0.0640984]
[1734504287789,0.70056146,214.0,213.95,0.0640984]
[1734504287991,11.53313376,214.0,213.95,0.0640984]
[1734504288818,11.53313376,213.98,213.95,0.0640984]
[1734504288990,0.70056146,214.01,213.95,0.0640984]
[1734504288991,11.53313376,213.96,213.95,0.0640984]
[1734504289408,3.5049,213.99,213.95,0.0640984]
[1734504289613,11.53313376,213.98,213.95,0.0640984]
[1734504289822,11.53313376,213.97,213.95,0.0640984]
[1734504290420,11.53313376,213.98,213.95,0.0640984]
[1734504291322,11.53313376,213.97,213.95,0.0640984]
[1734504294719,11.53313376,213.96,213.95,0.0640984]
[1734504295812,11.53313376,213.98,213.95,0.0640984]
[1734504297736,11.53313376,213.97,213.95,0.0640984]
[1734504298818,11.53313376,213.98,213.95,0.0640984]
[1734504299425,11.53313376,213.96,213.95,0.0640984]
[1734504301121,15.03843376,213.96,213.95,0.0640984]
[1734504301312,26.57156752,213.96,213.95,9.84e-05]
[1734504301522,15.73899522,213.96,213.95,9.84e-05]
[1734504301714,24.20586146,213.96,213.95,9.84e-05]
[1734504301937,4.20536146,214.0,213.95,9.84e-05]
[1734504302140,11.53313376,213.96,213.95,9.84e-05]
[1734504302440,11.53313376,213.97,213.95,9.84e-05]
[1734504303414,11.53313376,213.96,213.95,9.84e-05]
[1734504304545,23.5048,214.0,213.95,9.84e-05]
[1734504304855,11.53313376,214.0,213.95,9.84e-05]
[1734504305056,11.53313376,213.99,213.95,9.84e-05]
[1734504305222,11.53313376,213.98,213.95,9.84e-05]
[1734504305555,11.53313376,213.96,213.95,9.84e-05]
[1734504305754,20.0,214.03,213.95,9.84e-05]
[1734504306055,11.53313376,213.96,213.95,9.84e-05]
[1734504308026,7.38247846,213.96,213.95,9.84e-05]
[1734504309060,10.88777846,213.96,213.95,9.84e-05]
[1734504312990,30.88777846,213.96,213.95,9.84e-05]
[1734504315887,7.38247846,213.97,213.95,9.84e-05]
[1734504316388,7.38247846,213.96,213.95,9.84e-05]
[1734504320389,7.38247846,213.96,213.92,8.5030984]
[1734504320694,7.38247846,213.93,213.92,8.5030984]
[1734504322669,20.0,213.95,213.92,8.5030984]
[1734504322869,7.38247846,213.94,213.92,8.5030984]
[1734504323778,7.38247846,213.95,213.92,8.5030984]
[1734504324094,7.38247846,213.93,213.92,8.5030984]
[1734504325896,3.5056,213.94,213.92,8.5030984]
[1734504326100,7.38247846,213.93,213.92,8.5030984]
[1734504327093,7.38247846,213.93,213.92,5.5517984]
[1734504327297,7.38247846,213.93,213.92,3.0991984]
[1734504327496,7.38247846,213.93,213.92,9.84e-05]
[1734504327692,20.0,213.91,213.9,9.84e-05]
[1734504327899,27.38247846,213.91,213.9,9.84e-05]
[1734504328503,20.0,213.91,213.9,9.84e-05]
[1734504328724,3.5054,213.95,213.9,9.84e-05]
[1734504328892,10.88787846,213.95,213.9,9.84e-05]
[1734504329219,7.38247846,213.94,213.9,9.84e-05]
[1734504329681,7.38247846,213.92,213.9,9.84e-05]
[1734504330909,7.38247846,213.91,213.9,9.84e-05]
[1734504332389,10.88857846,213.91,213.9,9.84e-05]
[1734504334234,23.5061,213.91,213.9,9.84e-05]
[1734504334533,30.88857846,213.91,213.9,9.84e-05]
[1734504336845,30.88857846,213.91,213.88,66.74628112]
[1734504337047,7.38247846,213.89,213.88,66.74628112]
[1734504337396,20.0,213.86,213.8,150.0]
[1734504337626,7.38247846,213.81,213.8,150.0]
[1734504338006,31.55198073,213.81,213.8,150.0]
[1734504339125,35.05968073,213.81,213.8,150.0]
[1734504339629,23.5077,213.81,213.8,150.0]
[1734504339817,35.05968073,213.81,213.8,150.0]
[1734504340205,35.05968073,213.81,213.8,118.78835367]
[1734504340406,35.91273824,213.81,213.8,109.98805367]
[1734504341731,35.91273824,213.81,213.8,4.97417424]
[1734504341910,35.91273824,213.81,213.8,7.424e-05]
[1734504342420,32.40503824,213.81,213.8,7.424e-05]
[1734504347504,135.16552844,213.75,213.73,0.5584123]
[1734504347709,31.55198073,213.74,213.73,0.5584123]
[1734504348638,35.06088073,213.74,213.73,0.5584123]
[1734504349017,46.61286146,213.74,213.73,1.23e-05]
[1734504349216,35.91393824,213.74,213.73,1.23e-05]
[1734504350626,47.46591897,213.74,213.73,1.23e-05]
[1734504350828,35.91393824,213.74,213.73,1.23e-05]
[1734504351031,47.46591897,213.74,213.73,1.23e-05]
[1734504351229,77.46591897,213.74,213.73,1.23e-05]
[1734504352246,24.36195751,213.74,213.73,1.23e-05]
[1734504352455,35.91393824,213.74,213.73,1.23e-05]
[1734504353112,38.75732492,213.74,213.73,1.23e-05]
[1734504355814,27.20534419,213.74,213.73,1.23e-05]
[1734504356028,12.40503824,213.74,213.73,1.23e-05]
[1734504357714,20.0,213.7,213.66,150.0]
[1734504357915,11.55198073,213.67,213.66,150.0]
[1734504359334,11.55198073,213.67,213.66,147.4708]
[1734504361323,11.55198073,213.67,213.66,138.4732]
[1734504361634,12.40503824,213.67,213.66,135.752]
[1734504362229,12.40503824,213.67,213.66,102.18729175]
[1734504362546,0.85305751,213.67,213.66,102.18729175]
[1734504362753,12.40503824,213.67,213.66,102.18729175]
[1734504363530,0.85305751,213.67,213.66,102.18729175]
[1734504363937,12.40503824,213.67,213.66,102.18729175]
[1734504364526,0.85305751,213.67,213.66,102.18729175]
[1734504364721,12.40503824,213.67,213.66,102.18729175]
[1734504366134,12.40503824,213.67,213.66,95.35729175]
[1734504366667,12.40503824,213.67,213.66,89.51999175]
[1734504367025,12.40503824,213.67,213.66,81.54409175]
[1734504367244,12.40503824,213.67,213.66,79.19169175]
[1734504369028,11.55198073,213.68,213.66,79.19169175]
[1734504369456,11.55198073,213.7,213.66,79.19169175]